[Event "46th GRE-chT Premier 2018"]
[Site "Rio Achaia"]
[Date "2018.07.11"]
[Round "2"]
[White "Pavlidis, Pavlos"]
[Black "Apostolakakis, Konstantinos"]
[Result "0-1"]
[ECO "B51"]
[WhiteElo "1906"]
[BlackElo "2028"]
[Annotator "NA"]
[PlyCount "84"]
[EventDate "2018.07.10"]
[EventType "team-tourn"]
[EventCountry "GRE"]
[SourceTitle "playchess.com"]
[Source "ChessBase"]
[SourceQuality "1"]
[TimeControl "40/5400+30:1800+30"]

1. e4 {[%emt 0:00:00]} c5 {[%emt 0:00:00]} 2. Nf3 {[%emt 0:00:00]} d6 {[%emt 0:00:00]} 3. Bb5+ {[%emt 0:00:00]} Nd7 {[%emt 0:00:11]} 4. O-O {[%emt 0:00:00]} a6 {[%emt 0:00:09]} 5. Bd3 {[%emt 0:00:07]} Ngf6 {[%emt 0:00:14]} 6. Re1 {[%emt 0:00:55]} e6 {[%emt 0:00:36]} 7. c3 {[%emt 0:00:38]} Be7 {[%emt 0:00:51]} 8. Bc2 {[%emt 0:00:08]} O-O {[%emt 0:00:19]} 9. d4 {[%emt 0:01:11]} b5 {[%emt 0:01:00]} 10. Nbd2 {[%emt 0:02:09]} Bb7 {[%emt 0:01:11]} 11. Nf1 {[%emt 0:01:43]} Re8 {[%emt 0:01:36]} 12. Ng3 {[%emt 0:07:08]} Qc7 {[%emt 0:04:22]} 13. Bf4 {[%emt 0:13:52]} e5 {[%emt 0:10:05]} 14. Bg5 {[%emt 0:01:25]} g6 {[%emt 0:01:13]} 15. d5 {[%emt 0:04:50]} c4 {[%emt 0:01:15]} 16. h4 {[%emt 0:03:22]} Nc5 {[%emt 0:11:21]} 17. Nh2 {[%emt 0:07:45]} Bc8 {[%emt 0:03:53]} 18. Qf3 {[%emt 0:18:34]} Ncd7 {[%emt 0:10:43]} 19. Bh6 {[%emt 0:02:43]} a5 {[%emt 0:05:57]} 20. Nf5 {[%emt 0:08:45]} Bf8 {[%emt 0:03:02]} 21. Bxf8 {[%emt 0:00:14]} Nxf8 {[%emt 0:06:59]} 22. Nd4 {[%emt 0:09:23]} exd4 {[%emt 0:01:47]} 23. Qxf6 {[%emt 0:00:08]} d3 {[%emt 0:00:54]} 24. Bd1 {[%emt 0:00:21]} Nd7 {[%emt 0:14:15]} 25. Qf4 {[%emt 0:04:19]} Ne5 {[%emt 0:06:45]} 26. h5 {[%emt 0:05:39]} Qe7 {[%emt 0:01:57]} 27. h6 {[%emt 0:03:22]} Ra7 {[%emt 0:01:51]} 28. Bg4 {[%emt 0:00:46]} Bxg4 {[%emt 0:00:15]} 29. Nxg4 {[%emt 0:00:04]} Nxg4 {[%emt 0:00:13]} 30. Qxg4 {[%emt 0:00:07]} Qf6 {[%emt 0:01:49]} 31. f4 {[%emt 0:03:13]} Rae7 {[%emt 0:02:14]} 32. a3 {[%emt 0:00:12]} Kf8 {[%emt 0:01:21]} 33. Qf3 {[%emt 0:02:10]} Qh4 {[%emt 0:00:30]} 34. e5 {[%emt 0:00:28]} Qxh6 {[%emt 0:01:14]} 35. Qf2 {[%emt 0:00:34]} Qh5 {[%emt 0:04:30]} 36. exd6 {[%emt 0:00:42]} Rxe1+ {[%emt 0:02:03]} 37. Rxe1 {[%emt 0:00:04]} Rxe1+ {[%emt 0:00:23]} 38. Qxe1 {[%emt 0:00:04]} Qxd5 {[%emt 0:00:04]} 39. f5 {[%emt 0:01:39]} Qxd6 {[%emt 0:00:28]} 40. fxg6 {[%emt 0:00:00]} hxg6 {[%emt 0:00:00]} 41. Qe3 {[%emt 0:01:16]} d2 {[%emt 0:00:19]} 42. Qh6+ {[%emt 0:00:10]} Kg8 {[%emt 0:00:08]} 0-1

[Event "46th GRE-chT Premier 2018"]
[Site "Rio Achaia"]
[Date "2018.07.11"]
[Round "2"]
[White "Vallianos, Gerasimos"]
[Black "Papadopoulos, Panteleimon"]
[Result "1-0"]
[ECO "D37"]
[WhiteElo "1899"]
[BlackElo "1422"]
[Annotator "NA"]
[PlyCount "57"]
[EventDate "2018.07.10"]
[EventType "team-tourn"]
[EventCountry "GRE"]
[SourceTitle "playchess.com"]
[Source "ChessBase"]
[SourceQuality "1"]
[TimeControl "40/5400+30:1800+30"]

1. d4 {[%emt 0:00:00]} d5 {[%emt 0:00:28]} 2. Nf3 {[%emt 0:00:00]} Nf6 {[%emt 0:02:26]} 3. c4 {[%emt 0:00:00]} e6 {[%emt 0:01:42]} 4. Nc3 {[%emt 0:01:23]} Be7 {[%emt 0:03:29]} 5. Bg5 {[%emt 0:00:47]} Nbd7 {[%emt 0:02:59]} 6. e3 {[%emt 0:00:12]} b6 {[%emt 0:01:24]} 7. cxd5 {[%emt 0:00:24]} exd5 {[%emt 0:05:36]} 8. Bd3 {[%emt 0:00:44]} Bb7 {[%emt 0:01:50]} 9. Qa4 {[%emt 0:03:57]} O-O {[%emt 0:01:22]} 10. Ne5 {[%emt 0:01:13]} Re8 {[%emt 0:04:58]} 11. Nc6 {[%emt 0:00:37]} Bxc6 {[%emt 0:09:03]} 12. Qxc6 {[%emt 0:00:09]} h6 {[%emt 0:02:33]} 13. Bf4 {[%emt 0:00:48]} Rc8 {[%emt 0:12:08]} 14. O-O {[%emt 0:04:11]} Nf8 {[%emt 0:12:11]} 15. Ba6 {[%emt 0:01:29]} Rb8 {[%emt 0:04:41]} 16. Bxc7 {[%emt 0:00:30]} Rc8 {[%emt 0:02:13]} 17. Bxc8 {[%emt 0:00:31]} Qxc8 {[%emt 0:00:33]} 18. Rac1 {[%emt 0:00:38]} Ne6 {[%emt 0:01:54]} 19. Nb5 {[%emt 0:00:24]} a6 {[%emt 0:04:14]} 20. Nd6 {[%emt 0:00:31]} Bxd6 {[%emt 0:01:06]} 21. Bxd6 {[%emt 0:00:31]} Qd8 {[%emt 0:03:33]} 22. Bc7 {[%emt 0:00:45]} Nxc7 {[%emt 0:01:05]} 23. Qxc7 {[%emt 0:00:08]} Qb8 {[%emt 0:01:13]} 24. Qxb8 {[%emt 0:00:10]} Rxb8 {[%emt 0:00:12]} 25. Rc7 {[%emt 0:00:24]} g6 {[%emt 0:01:26]} 26. Rfc1 {[%emt 0:00:24]} Kg7 {[%emt 0:00:47]} 27. Rc8 {[%emt 0:00:08]} Rb7 {[%emt 0:00:23]} 28. R1c7 {[%emt 0:00:07]} Rxc7 {[%emt 0:00:42]} 29. Rxc7 {[%emt 0:00:08]} 1-0

[Event "46th GRE-chT Premier 2018"]
[Site "Rio Achaia"]
[Date "2018.07.11"]
[Round "2"]
[White "Gkikas, Vasilios"]
[Black "Malataras, Gerasimos"]
[Result "1/2-1/2"]
[ECO "A77"]
[WhiteElo "1892"]
[BlackElo "1823"]
[Annotator "NA"]
[PlyCount "116"]
[EventDate "2018.07.10"]
[EventType "team-tourn"]
[EventCountry "GRE"]
[SourceTitle "playchess.com"]
[Source "ChessBase"]
[SourceQuality "1"]
[TimeControl "40/5400+30:1800+30"]

1. d4 {[%emt 0:01:25]} Nf6 {[%emt 0:00:00]} 2. c4 {[%emt 0:00:53]} c5 {[%emt 0:00:00]} 3. d5 {[%emt 0:00:36]} e6 {[%emt 0:00:00]} 4. Nc3 {[%emt 0:00:33]} exd5 {[%emt 0:00:00]} 5. cxd5 {[%emt 0:00:06]} d6 {[%emt 0:00:00]} 6. e4 {[%emt 0:00:50]} g6 {[%emt 0:00:08]} 7. Nf3 {[%emt 0:00:25]} Bg7 {[%emt 0:00:09]} 8. Be2 {[%emt 0:00:15]} O-O {[%emt 0:00:18]} 9. Nd2 {[%emt 0:00:42]} Re8 {[%emt 0:00:29]} 10. O-O {[%emt 0:00:13]} Nbd7 {[%emt 0:00:27]} 11. Qc2 {[%emt 0:06:03]} Ne5 {[%emt 0:00:58]} 12. Re1 {[%emt 0:03:49]} Nfg4 {[%emt 0:07:45]} 13. Nf1 f5 {[%emt 0:15:03]} 14. Bf4 {[%emt 0:35:35]} a6 {[%emt 0:11:35]} 15. a4 {[%emt 0:10:25]} Nf6 {[%emt 0:07:28]} 16. Ne3 {[%emt 0:06:50]} Nxe4 {[%emt 0:10:23]} 17. Nxe4 {[%emt 0:01:31]} fxe4 {[%emt 0:00:09]} 18. Qxe4 {[%emt 0:09:57]} g5 {[%emt 0:08:12]} 19. Bg3 {[%emt 0:05:32]} Ng4 {[%emt 0:03:30]} 20. Qc2 {[%emt 0:00:14]} Nxe3 {[%emt 0:02:21]} 21. fxe3 {[%emt 0:01:03]} Be5 {[%emt 0:04:34]} 22. Bxe5 {[%emt 0:01:21]} Rxe5 {[%emt 0:00:12]} 23. Bd3 {[%emt 0:01:30]} Qe7 {[%emt 0:00:44]} 24. e4 {[%emt 0:00:18]} Bf5 {[%emt 0:01:44]} 25. Re2 {[%emt 0:01:16]} Bg6 {[%emt 0:00:30]} 26. Rae1 {[%emt 0:02:40]} Rc8 {[%emt 0:01:50]} 27. Qc4 {[%emt 0:01:15]} Be8 {[%emt 0:01:52]} 28. Qc1 {[%emt 0:03:42]} Bxa4 {[%emt 0:02:09]} 29. Rf2 {[%emt 0:00:47]} Be8 {[%emt 0:07:59]} 30. Ref1 {[%emt 0:01:11]} Bg6 {[%emt 0:00:31]} 31. h4 {[%emt 0:00:28]} gxh4 {[%emt 0:07:21]} 32. Qh6 {[%emt 0:00:31]} Qg7 {[%emt 0:00:42]} 33. Qxh4 {[%emt 0:00:40]} Rh5 {[%emt 0:00:49]} 34. Qf4 {[%emt 0:00:14]} Qe5 {[%emt 0:01:59]} 35. Qxe5 {[%emt 0:01:48]} Rxe5 {[%emt 0:00:03]} 36. Rf6 {[%emt 0:00:17]} Rd8 {[%emt 0:00:19]} 37. R6f4 {[%emt 0:00:55]} Rde8 {[%emt 0:01:41]} 38. Rf6 {[%emt 0:00:17]} Rd8 {[%emt 0:00:04]} 39. R6f4 {[%emt 0:00:20]} Kg7 {[%emt 0:00:21]} 40. Rf6 {[%emt 0:00:00]} Ree8 {[%emt 0:00:00]} 41. g4 {[%emt 0:05:10]} Rd7 {[%emt 0:10:14]} 42. R6f4 {[%emt 0:05:33]} Re5 {[%emt 0:00:56]} 43. Kg2 {[%emt 0:00:59]} Rf7 {[%emt 0:02:40]} 44. Rxf7+ {[%emt 0:00:14]} Bxf7 {[%emt 0:00:05]} 45. Kf3 {[%emt 0:00:42]} Bg6 {[%emt 0:03:28]} 46. Re1 {[%emt 0:00:33]} Re8 {[%emt 0:04:58]} 47. Rc1 {[%emt 0:00:45]} Re7 {[%emt 0:02:52]} 48. g5 {[%emt 0:01:54]} Kf7 {[%emt 0:04:54]} 49. Ke3 {[%emt 0:01:01]} Ke8 {[%emt 0:01:01]} 50. b4 {[%emt 0:00:40]} cxb4 {[%emt 0:01:27]} 51. Rb1 {[%emt 0:00:06]} Rc7 {[%emt 0:05:03]} 52. Rxb4 {[%emt 0:00:14]} Ke7 {[%emt 0:00:54]} 53. Rb1 {[%emt 0:00:15]} Be8 {[%emt 0:01:47]} 54. Rh1 {[%emt 0:00:30]} Bg6 {[%emt 0:00:39]} 55. Kd4 {[%emt 0:00:30]} Rc8 {[%emt 0:01:03]} 56. Rb1 {[%emt 0:00:16]} Rc7 {[%emt 0:00:16]} 57. Rh1 {[%emt 0:00:21]} Rc8 {[%emt 0:00:03]} 58. Rb1 {[%emt 0:00:42]} Rc7 {[%emt 0:00:29]} 1/2-1/2

[Event "46th GRE-chT Premier 2018"]
[Site "Rio Achaia"]
[Date "2018.07.11"]
[Round "2"]
[White "Georgiadis, Alexandros"]
[Black "Kalofonos, Panayotis"]
[Result "1/2-1/2"]
[ECO "A88"]
[WhiteElo "1882"]
[BlackElo "1896"]
[Annotator "NA"]
[PlyCount "66"]
[EventDate "2018.07.10"]
[EventType "team-tourn"]
[EventCountry "GRE"]
[SourceTitle "playchess.com"]
[Source "ChessBase"]
[SourceQuality "1"]
[TimeControl "40/5400+30:1800+30"]

1. d4 f5 {[%emt 0:02:12]} 2. c4 {[%emt 0:02:11]} g6 {[%emt 0:00:54]} 3. Nf3 {[%emt 0:00:46]} Nf6 {[%emt 0:00:14]} 4. g3 {[%emt 0:00:16]} Bg7 {[%emt 0:00:12]} 5. Bg2 {[%emt 0:00:08]} O-O {[%emt 0:00:28]} 6. O-O {[%emt 0:00:07]} d6 {[%emt 0:00:09]} 7. Nc3 {[%emt 0:00:54]} c6 {[%emt 0:00:54]} 8. b3 {[%emt 0:08:00]} Qc7 {[%emt 0:05:57]} 9. Qc2 {[%emt 0:03:52]} e5 {[%emt 0:01:43]} 10. dxe5 {[%emt 0:00:11]} dxe5 {[%emt 0:00:07]} 11. Ba3 {[%emt 0:00:24]} Re8 {[%emt 0:09:29]} 12. e4 {[%emt 0:08:45]} f4 {[%emt 0:21:02]} 13. Rad1 {[%emt 0:11:23]} Bf8 {[%emt 0:02:48]} 14. Bxf8 {[%emt 0:00:20]} Kxf8 {[%emt 0:01:34]} 15. Rd2 {[%emt 0:17:11]} Na6 {[%emt 0:16:01]} 16. a3 {[%emt 0:01:58]} Bg4 {[%emt 0:01:01]} 17. h3 {[%emt 0:00:08]} Bxf3 {[%emt 0:00:44]} 18. Bxf3 {[%emt 0:00:06]} Nc5 {[%emt 0:02:01]} 19. Kg2 {[%emt 0:03:57]} Rad8 {[%emt 0:06:32]} 20. Rfd1 {[%emt 0:00:14]} Rxd2 {[%emt 0:07:03]} 21. Rxd2 {[%emt 0:00:29]} fxg3 {[%emt 0:00:41]} 22. fxg3 {[%emt 0:00:10]} Rd8 {[%emt 0:02:21]} 23. b4 {[%emt 0:09:02]} Ne6 {[%emt 0:02:51]} 24. c5 {[%emt 0:00:15]} Nd4 {[%emt 0:08:58]} 25. Qd1 {[%emt 0:00:19]} Ke7 {[%emt 0:02:23]} 26. Be2 {[%emt 0:12:55]} Ne6 {[%emt 0:02:01]} 27. Rxd8 {[%emt 0:04:12]} Qxd8 {[%emt 0:00:07]} 28. Qxd8+ {[%emt 0:00:14]} Kxd8 {[%emt 0:00:08]} 29. h4 {[%emt 0:03:08]} Nd4 {[%emt 0:00:21]} 30. Bd1 {[%emt 0:00:23]} b6 {[%emt 0:03:11]} 31. cxb6 {[%emt 0:00:13]} axb6 {[%emt 0:00:08]} 32. Kf2 {[%emt 0:00:12]} Kc7 {[%emt 0:00:44]} 33. Ke3 {[%emt 0:00:08]} Kd6 {[%emt 0:00:34] Kxd4} 1/2-1/2

[Event "46th GRE-chT Premier 2018"]
[Site "Rio Achaia"]
[Date "2018.07.11"]
[Round "2"]
[White "Berbatis, Antonios"]
[Black "Symeonidis, Theofilos"]
[Result "1-0"]
[ECO "B90"]
[WhiteElo "1881"]
[BlackElo "1605"]
[Annotator "NA"]
[PlyCount "55"]
[EventDate "2018.07.10"]
[EventType "team-tourn"]
[EventCountry "GRE"]
[SourceTitle "playchess.com"]
[Source "ChessBase"]
[SourceQuality "1"]
[TimeControl "40/5400+30:1800+30"]

1. e4 {[%emt 0:00:00]} c5 {[%emt 0:00:00]} 2. Nf3 {[%emt 0:00:00]} d6 {[%emt 0:00:00]} 3. d4 {[%emt 0:00:16]} cxd4 {[%emt 0:00:00]} 4. Nxd4 {[%emt 0:00:20]} Nf6 {[%emt 0:00:03]} 5. Nc3 {[%emt 0:00:44]} a6 {[%emt 0:00:23]} 6. h3 {[%emt 0:01:08]} e6 {[%emt 0:00:59]} 7. g4 {[%emt 0:00:47]} d5 {[%emt 0:00:07]} 8. Bg2 {[%emt 0:03:06]} dxe4 {[%emt 0:01:20]} 9. Nxe4 {[%emt 0:02:32]} Nxe4 {[%emt 0:06:37]} 10. Bxe4 {[%emt 0:00:32]} Bc5 {[%emt 0:03:42]} 11. Be3 {[%emt 0:08:41]} Nd7 {[%emt 0:03:02]} 12. Qd2 {[%emt 0:11:05]} Nf6 {[%emt 0:05:54]} 13. Bd3 {[%emt 0:08:28]} Qd5 {[%emt 0:11:03]} 14. O-O-O {[%emt 0:06:10]} Qxa2 {[%emt 0:23:26]} 15. Nb3 {[%emt 0:00:17]} Bxe3 {[%emt 0:02:43]} 16. Qxe3 {[%emt 0:05:40]} O-O {[%emt 0:04:06]} 17. g5 {[%emt 0:04:48]} Nd5 {[%emt 0:02:05]} 18. Qe4 {[%emt 0:00:32]} g6 {[%emt 0:00:57]} 19. h4 {[%emt 0:02:37]} a5 {[%emt 0:01:29]} 20. h5 {[%emt 0:02:34]} a4 {[%emt 0:16:27]} 21. hxg6 {[%emt 0:00:24]} axb3 {[%emt 0:00:24]} 22. Rxh7 {[%emt 0:00:57]} Qa1+ {[%emt 0:09:01]} 23. Kd2 {[%emt 0:01:11]} Qa5+ {[%emt 0:00:17]} 24. Ke2 {[%emt 0:03:46]} Nc3+ {[%emt 0:03:35]} 25. bxc3 {[%emt 0:00:52]} Qxg5 {[%emt 0:00:43]} 26. g7 {[%emt 0:06:57]} Rd8 {[%emt 0:00:17]} 27. Rh8+ {[%emt 0:05:09]} Kxg7 {[%emt 0:00:07]} 28. Qh7+ {[%emt 0:00:01]} 1-0

[Event "46th GRE-chT Premier 2018"]
[Site "Rio Achaia"]
[Date "2018.07.11"]
[Round "2"]
[White "Bardis, Harilaos-Panagiotis"]
[Black "Gavriil, Odysseas-Panagiotis"]
[Result "0-1"]
[ECO "B50"]
[WhiteElo "1866"]
[BlackElo "1910"]
[Annotator "NA"]
[PlyCount "120"]
[EventDate "2018.07.10"]
[EventType "team-tourn"]
[EventCountry "GRE"]
[SourceTitle "playchess.com"]
[Source "ChessBase"]
[SourceQuality "1"]
[TimeControl "40/5400+30:1800+30"]

1. e4 {[%emt 0:00:00]} c5 {[%emt 0:00:29]} 2. Nf3 {[%emt 0:00:00]} d6 {[%emt 0:00:09]} 3. c3 {[%emt 0:00:00]} Nf6 {[%emt 0:00:30]} 4. h3 {[%emt 0:00:00]} Nc6 {[%emt 0:00:49]} 5. Bd3 {[%emt 0:00:12]} g6 {[%emt 0:00:47]} 6. Bc2 {[%emt 0:00:08]} Bg7 {[%emt 0:00:33]} 7. O-O {[%emt 0:01:48]} O-O {[%emt 0:00:22]} 8. d4 {[%emt 0:00:44]} e5 {[%emt 0:04:44]} 9. Na3 {[%emt 0:04:22]} Qe7 {[%emt 0:06:48]} 10. dxc5 {[%emt 0:08:06]} dxc5 {[%emt 0:00:11]} 11. Bg5 {[%emt 0:02:16]} h6 {[%emt 0:05:56]} 12. Be3 {[%emt 0:06:29]} b6 {[%emt 0:02:51]} 13. Nc4 {[%emt 0:01:53]} Bb7 {[%emt 0:10:43]} 14. Qe2 {[%emt 0:06:00]} Rad8 {[%emt 0:01:49]} 15. Rad1 {[%emt 0:00:59]} Nh5 {[%emt 0:16:18]} 16. Rxd8 {[%emt 0:08:18]} Rxd8 {[%emt 0:00:13]} 17. Rd1 {[%emt 0:00:06]} Nf4 {[%emt 0:04:41]} 18. Rxd8+ {[%emt 0:08:53]} Qxd8 {[%emt 0:01:23]} 19. Qd2 {[%emt 0:00:20]} Qxd2 {[%emt 0:03:23]} 20. Bxd2 {[%emt 0:01:17]} Ne6 {[%emt 0:06:02]} 21. g3 {[%emt 0:08:28]} Kf8 {[%emt 0:03:14]} 22. Bc1 {[%emt 0:03:27]} Ke7 {[%emt 0:01:38]} 23. Nh2 {[%emt 0:08:21]} h5 {[%emt 0:03:19]} 24. Nf1 {[%emt 0:00:37]} b5 {[%emt 0:03:25]} 25. Nce3 {[%emt 0:03:51]} Nc7 {[%emt 0:00:09]} 26. f3 {[%emt 0:04:47]} Nd8 {[%emt 0:03:43]} 27. a4 {[%emt 0:06:17]} a6 {[%emt 0:01:13]} 28. axb5 {[%emt 0:00:47]} axb5 {[%emt 0:00:02]} 29. Nd2 {[%emt 0:00:25]} Nde6 {[%emt 0:00:45]} 30. Nb1 {[%emt 0:01:21]} Kd7 {[%emt 0:02:50]} 31. Na3 {[%emt 0:01:10]} Bf8 {[%emt 0:04:09]} 32. Bd3 {[%emt 0:04:24]} c4 {[%emt 0:01:11]} 33. Bf1 {[%emt 0:03:51]} Bc5 {[%emt 0:04:47]} 34. Kg2 {[%emt 0:00:34]} Bxa3 {[%emt 0:01:10]} 35. bxa3 {[%emt 0:00:02]} Nc5 {[%emt 0:00:21]} 36. Nc2 {[%emt 0:01:17]} Nxe4 {[%emt 0:01:31]} 37. fxe4 {[%emt 0:02:15]} Bxe4+ {[%emt 0:00:09]} 38. Kf2 {[%emt 0:00:06]} Bxc2 {[%emt 0:00:13]} 39. Bg2 {[%emt 0:00:22]} Bf5 {[%emt 0:01:13]} 40. Be3 {[%emt 0:00:00]} Be6 {[%emt 0:00:00]} 41. Bb6 {[%emt 0:01:51]} Kd6 {[%emt 0:04:34]} 42. h4 {[%emt 0:00:21]} f5 {[%emt 0:00:40]} 43. Bb7 {[%emt 0:01:53]} Bd7 {[%emt 0:01:52]} 44. Bf3 {[%emt 0:00:59]} Na6 {[%emt 0:03:26]} 45. Ke1 {[%emt 0:01:19]} Bc6 {[%emt 0:00:31]} 46. Be2 {[%emt 0:02:06]} Nc5 {[%emt 0:00:16]} 47. Bxc5+ {[%emt 0:01:02]} Kxc5 {[%emt 0:00:07]} 48. Kd2 {[%emt 0:00:03]} f4 {[%emt 0:01:48]} 49. gxf4 {[%emt 0:00:46]} exf4 {[%emt 0:01:05]} 50. Bf1 {[%emt 0:00:58]} Kd6 {[%emt 0:01:27]} 51. Ke2 {[%emt 0:00:41]} Ke5 {[%emt 0:00:36]} 52. Bh3 {[%emt 0:00:06]} Kf6 {[%emt 0:01:20]} 53. Kf2 {[%emt 0:01:42]} g5 {[%emt 0:00:45]} 54. hxg5+ {[%emt 0:00:03]} Kxg5 {[%emt 0:00:02]} 55. Bc8 {[%emt 0:00:38]} Kf6 {[%emt 0:00:56]} 56. Bh3 {[%emt 0:01:43]} Ke5 {[%emt 0:00:45]} 57. Ke2 {[%emt 0:00:11]} Kd6 {[%emt 0:02:59]} 58. Bf5 {[%emt 0:04:25]} Kc5 {[%emt 0:01:25]} 59. Kf2 {[%emt 0:03:10]} Kb6 {[%emt 0:00:04]} 60. Bc2 {[%emt 0:03:12]} Ka5 {[%emt 0:00:05]} 0-1

[Event "46th GRE-chT Premier 2018"]
[Site "Rio Achaia"]
[Date "2018.07.11"]
[Round "2"]
[White "Pasoglou, Ekaterini"]
[Black "Kokkota, Fotini"]
[Result "1-0"]
[ECO "B90"]
[WhiteElo "1849"]
[BlackElo "1615"]
[Annotator "NA"]
[PlyCount "53"]
[EventDate "2018.07.10"]
[EventType "team-tourn"]
[EventCountry "GRE"]
[SourceTitle "playchess.com"]
[Source "ChessBase"]
[SourceQuality "1"]
[TimeControl "40/5400+30:1800+30"]

1. e4 {[%emt 0:00:00]} c5 {[%emt 0:00:00]} 2. Nf3 {[%emt 0:00:00]} d6 {[%emt 0:00:00]} 3. d4 {[%emt 0:00:08]} cxd4 {[%emt 0:00:00]} 4. Nxd4 {[%emt 0:00:06]} Nf6 {[%emt 0:00:00]} 5. Nc3 {[%emt 0:00:13]} a6 {[%emt 0:00:07]} 6. Nb3 {[%emt 0:00:18]} e6 {[%emt 0:01:21]} 7. g4 {[%emt 0:00:25]} b5 {[%emt 0:01:45]} 8. g5 {[%emt 0:01:21]} Nfd7 {[%emt 0:00:25]} 9. a3 {[%emt 0:01:44]} Bb7 {[%emt 0:01:22]} 10. Bg2 {[%emt 0:00:48]} Qc7 {[%emt 0:08:06]} 11. Be3 {[%emt 0:03:14]} Ne5 {[%emt 0:02:55]} 12. Nd2 {[%emt 0:06:36]} Nbd7 {[%emt 0:03:53]} 13. f4 {[%emt 0:03:38]} Nc4 {[%emt 0:01:44]} 14. Nxc4 {[%emt 0:00:17]} bxc4 {[%emt 0:00:06]} 15. Qe2 {[%emt 0:03:14]} Be7 {[%emt 0:04:22]} 16. O-O {[%emt 0:02:35]} Rd8 {[%emt 0:01:59]} 17. Rae1 {[%emt 0:02:59]} O-O {[%emt 0:09:17]} 18. f5 {[%emt 0:03:44]} exf5 {[%emt 0:17:15]} 19. exf5 {[%emt 0:01:49]} Rfe8 {[%emt 0:00:11]} 20. Qg4 {[%emt 0:11:02]} Ne5 {[%emt 0:02:40]} 21. Qg3 {[%emt 0:02:17]} d5 {[%emt 0:02:16]} 22. Bf4 {[%emt 0:02:15]} Bd6 {[%emt 0:12:51]} 23. Kh1 {[%emt 0:07:43]} d4 {[%emt 0:09:58]} 24. Ne4 {[%emt 0:01:47]} d3 {[%emt 0:00:52]} 25. cxd3 {[%emt 0:14:19]} Nxd3 {[%emt 0:01:26]} 26. Bxd6 {[%emt 0:02:07]} Rxd6 {[%emt 0:00:39]} 27. Nf6+ {[%emt 0:01:39]} 1-0

[Event "46th GRE-chT Premier 2018"]
[Site "Rio Achaia"]
[Date "2018.07.11"]
[Round "2"]
[White "Papadopoulos, Zisis"]
[Black "Tsekmes, Dimitrios"]
[Result "1/2-1/2"]
[ECO "E15"]
[WhiteElo "1834"]
[BlackElo "2170"]
[Annotator "NA"]
[PlyCount "64"]
[EventDate "2018.07.10"]
[EventType "team-tourn"]
[EventCountry "GRE"]
[SourceTitle "playchess.com"]
[Source "ChessBase"]
[SourceQuality "1"]
[TimeControl "40/5400+30:1800+30"]

1. d4 {[%emt 0:00:00]} Nf6 {[%emt 0:00:00]} 2. c4 {[%emt 0:00:05]} e6 {[%emt 0:00:00]} 3. Nf3 {[%emt 0:00:10]} b6 {[%emt 0:00:23]} 4. g3 {[%emt 0:00:19]} Ba6 {[%emt 0:00:32]} 5. Qc2 {[%emt 0:02:24]} c5 {[%emt 0:00:24]} 6. b3 {[%emt 0:04:29]} cxd4 {[%emt 0:04:22]} 7. Nxd4 {[%emt 0:02:42]} Bb7 {[%emt 0:02:35]} 8. Nf3 {[%emt 0:00:48]} Nc6 {[%emt 0:24:26]} 9. Bg2 {[%emt 0:03:18]} Nd4 {[%emt 0:03:49]} 10. Qb2 {[%emt 0:00:51]} Nxf3+ {[%emt 0:02:14]} 11. exf3 {[%emt 0:02:44]} d5 {[%emt 0:03:40]} 12. f4 {[%emt 0:15:27]} Bc5 {[%emt 0:10:08]} 13. O-O {[%emt 0:02:04]} O-O {[%emt 0:00:19]} 14. b4 {[%emt 0:09:49]} Be7 {[%emt 0:01:56]} 15. Be3 {[%emt 0:02:09]} Qc7 {[%emt 0:01:46]} 16. Nd2 {[%emt 0:04:00]} dxc4 {[%emt 0:02:15]} 17. Bxb7 {[%emt 0:00:58]} Qxb7 {[%emt 0:00:04]} 18. Nxc4 {[%emt 0:00:12]} Rac8 {[%emt 0:02:53]} 19. Ne5 {[%emt 0:01:50]} Nd5 {[%emt 0:01:33]} 20. Bd2 {[%emt 0:01:36]} b5 {[%emt 0:02:43]} 21. Rac1 {[%emt 0:00:22]} h5 {[%emt 0:01:57]} 22. h4 {[%emt 0:03:54]} Bf6 {[%emt 0:04:34]} 23. a3 {[%emt 0:06:37]} Nb6 {[%emt 0:02:04]} 24. Bc3 {[%emt 0:05:02]} Rfd8 {[%emt 0:09:41]} 25. Qe2 {[%emt 0:00:20]} Nd5 {[%emt 0:03:23]} 26. Ba1 {[%emt 0:02:06]} g6 {[%emt 0:00:28]} 27. Rc5 {[%emt 0:03:09]} a6 {[%emt 0:03:55]} 28. Rfc1 {[%emt 0:00:55]} Be7 {[%emt 0:00:30]} 29. R5c2 {[%emt 0:06:30]} Bf6 {[%emt 0:02:37]} 30. Rc5 {[%emt 0:00:29]} Be7 {[%emt 0:00:21]} 31. R5c2 {[%emt 0:00:36]} Bf6 {[%emt 0:01:19]} 32. Rc5 {[%emt 0:01:06]} Be7 {[%emt 0:01:54]} 1/2-1/2

[Event "46th GRE-chT Premier 2018"]
[Site "Rio Achaia"]
[Date "2018.07.11"]
[Round "2"]
[White "Sotiropoulos, Anastasios-Theohar"]
[Black "Apostolidis, Angelos"]
[Result "1-0"]
[ECO "E67"]
[WhiteElo "1834"]
[BlackElo "1117"]
[Annotator "NA"]
[PlyCount "65"]
[EventDate "2018.07.10"]
[EventType "team-tourn"]
[EventCountry "GRE"]
[SourceTitle "playchess.com"]
[Source "ChessBase"]
[SourceQuality "1"]
[TimeControl "40/5400+30:1800+30"]

1. Nf3 {[%emt 0:00:00]} Nf6 {[%emt 0:00:00]} 2. c4 {[%emt 0:00:00]} g6 {[%emt 0:01:40]} 3. g3 {[%emt 0:00:00]} Bg7 {[%emt 0:00:36]} 4. Bg2 {[%emt 0:00:00]} O-O {[%emt 0:00:21]} 5. O-O {[%emt 0:00:00]} d6 {[%emt 0:00:15]} 6. d4 {[%emt 0:00:00]} Nbd7 {[%emt 0:01:37]} 7. Nc3 {[%emt 0:00:07]} e5 {[%emt 0:01:42]} 8. h3 {[%emt 0:00:18]} Rb8 {[%emt 0:01:55]} 9. e4 {[%emt 0:00:40]} Re8 {[%emt 0:00:56]} 10. Re1 {[%emt 0:00:15]} b6 {[%emt 0:08:10]} 11. Be3 {[%emt 0:06:00]} Bb7 {[%emt 0:01:44]} 12. d5 {[%emt 0:00:19]} c5 {[%emt 0:01:27]} 13. dxc6 {[%emt 0:13:34]} Bxc6 {[%emt 0:01:36]} 14. Qxd6 {[%emt 0:05:53]} Bxe4 {[%emt 0:03:00]} 15. Rad1 {[%emt 0:00:01]} Re6 {[%emt 0:04:56]} 16. Qd2 {[%emt 0:03:40]} Bc6 {[%emt 0:06:28]} 17. Ng5 {[%emt 0:00:43]} Qe7 {[%emt 0:01:55]} 18. Nxe6 {[%emt 0:00:07]} Qxe6 {[%emt 0:00:34]} 19. Nd5 {[%emt 0:00:19]} Bxd5 {[%emt 0:01:26]} 20. cxd5 {[%emt 0:00:10]} Qd6 {[%emt 0:00:51]} 21. Rc1 {[%emt 0:01:30]} Nc5 {[%emt 0:02:44]} 22. Bg5 {[%emt 0:02:47]} a5 {[%emt 0:01:02]} 23. Be3 {[%emt 0:02:10]} Rd8 {[%emt 0:01:55]} 24. Bxc5 {[%emt 0:00:18]} bxc5 {[%emt 0:00:15]} 25. Qxa5 {[%emt 0:00:08]} Nxd5 {[%emt 0:01:26]} 26. Red1 {[%emt 0:00:33]} Qc6 {[%emt 0:00:49]} 27. Qxd8+ {[%emt 0:00:06]} Bf8 {[%emt 0:00:32]} 28. Rxd5 {[%emt 0:00:07]} Qf6 {[%emt 0:00:47]} 29. Qxf6 {[%emt 0:00:13]} Bg7 {[%emt 0:00:49]} 30. Rd8+ {[%emt 0:00:08]} Bf8 {[%emt 0:00:43]} 31. Rxc5 {[%emt 0:00:08]} h5 {[%emt 0:00:45]} 32. Rxf8+ {[%emt 0:00:07]} Kxf8 {[%emt 0:00:51]} 33. Rc8# {[%emt 0:00:04]} 1-0